Workbook

Sheet Forside
A1: Versjonsnummer | C1: KRT-1225 | R1: 1. kvartal | S1: =(YEAR(NOW()))+1 -> 2024 | BA1: =C1 -> KRT-1225 | BB1: =B12 -> 20220331 | BC1: =A2 -> 322 | BD1: =G10 -> 0 | BE1: =F12 -> 0 | BF1: =IFERROR(LEFT(G12,1)*3,0) -> 0 | BG1: 10 | BH1: Forside | BI1: =IF(G13="Konsolidert",2,IF(G13="Ikke Konsolidert",1,IF(G13="",-1))) -> -1 | BJ1: 0 | CA1: BA | CB1: 999999001 | CC1: BB | CD1: =+CB1+1 -> 999999002 | CE1: BC | CF1: =+CD1+1 -> 999999003 | CG1: BD | CH1: =+CF1+1 -> 999999004 | CI1: BE | CJ1: =+CH1+1 -> 999999005 | CK1: BF | CL1: =+CJ1+1 -> 999999006 | CM1: BG | CN1: =+CL1+1 -> 999999007 | CO1: BH | CP1: =+CN1+1 -> 999999008 | CQ1: BI | CR1: =+CP1+1 -> 999999009 | CS1: BJ | CT1: =+CR1+1 -> 999999010
A2: 322 | R2: 2. kvartal | S2: =+S1-1 -> 2023 | BA2: Skjema-ID | BB2: Gyldig Excel Mal | BC2: VersjonsNr | BD2: Orgnr | BE2: År | BF2: MND | BG2: Antall datakolonner | BH2: Arknavn | BI2: Kons./ikke kons. | BJ2: SA/IRB
R3: 3. kvartal | S3: =+S2-1 -> 2022
R4: 4. kvartal
W5: 5
X6: 6
B7: Skjema for rapportering av Markedsrisiko: rammer og tapspotensial | X7: 7
X8: 8
B9: FORETAKETS NAVN: | G9: ORGANISASJONS- NUMMER: | X9: 9
X10: 10
B11: EXCELMAL GYLDIG FRA: | D11: SISTE DAG I RAPPORTERINGSPERIODEN: | F11: RAPPORTERINGSÅR: | G11: RAPPORTERINGSPERIODE:
B12: 20220331 | D12: =IF(OR(F12="",G12=""),"",IF(G12="1. kvartal",CONCATENATE("31.03.",CONCATENATE(RIGHT(F12,4))),IF(G12="2. kvartal",CONCATENATE("30.06.",CONCATENATE(RIGHT(F12,4))),IF(G12="3. kvartal",CONCATENATE("30.09.",CONCATENATE(RIGHT(F12,4))),IF(G12="4. kvartal",CONCATENATE("31.12.",CONCATENATE(RIGHT(F12,4)))))))) -> 

Sheet Skjema
B1: Markedsrisiko: rammer og tapspotensial
B3: =Forside!B10 -> 0 | C3: =Forside!G10 -> 0
B5: Vurdering per: | C5: =Forside!D12 -> 
B7: Har foretaket handelsportefølje som det må stilles kapital for etter Pilar 1?
B9: Er noen av rammene endret siden siste rapportering?
B11: Aksjerisiko | C11: Beløp i tusen kr | E11: Skjult (=1)
A12: =+IF($C$7<>"Nei",0,1) -> 0 | B12: Handelsportefølje
A13: =+IF($C$7<>"Nei",0,1) -> 0 | B13: Ramme for tapspotensial
A14: =+IF($C$7<>"Nei",0,1) -> 0 | B14: Tapspotensial | C14: =C15+C18+C19 -> 0
A15: =+IF($C$7<>"Nei",0,1) -> 0 | B15: Eksponering
A16: 0 | B16: Risikospredning (%)
A17: 0 | B17: Markedslikviditet (%)
A18: =+IF($C$7<>"Nei",0,1) -> 0 | B18: Risikospredning | C18: =C16*C15 -> 0
A19: 0 | B19: Markedslikviditet | C19: =C17*C15 -> 0
B20: Bankportefølje
B21: Ramme for tapspotensial
B22: Tapspotensial | C22: =C23+C26+C27 -> 0
B23: Eksponering
B24: Risikospredning (%)
B25: Markedslikviditet (%)
B26: Risikospredning | C26: =C24*C23 -> 0
B27: Markedslikviditet | C27: =C25*C23 -> 0
A28: =+IF($C$7<>"Nei",0,1) -> 0
A29: =+IF($C$7<>"Nei",0,1) -> 0 | B29: Samlet ramme for tapspotensial | C29: =C13+C21 -> 0 | E29: =+IF($C$7<>"Nei",0,1) -> 0
A30: =+IF($C$7<>"Nei",0,1) -> 0 | B30: Samlet tapspotensial | C30: =C14+C22 -> 0 | E30: =+IF($C$7<>"Nei",0,1) -> 0
B32: Definisjon av ramme - evt. henvisning til dokumentnavn fra arkfane "Vedlegg"
B34: Liste over aksjeposisjoner som er unntatt i beregningen lastes opp i arkfane "Vedlegg"
B36: Renterisiko | C36: Beløp i tusen kr
A37: =+IF($C$7<>"Nei",0,1) -> 0 | B37: Handelsportefølje | E37: =+IF($C$7<>"Nei",0,1) -> 0
A38: =+IF($C$7<>"Nei",0,1) -> 0 | B38: Ramme for tapspotensial | E38: =+IF($C$7<>"Nei",0,1) -> 0
A39: =+IF($C$7<>"Nei",0,1) -> 0 | B39: Tapspotensial | C39: =C40+C43+C44 -> 0 | E39: =+IF($C$7<>"Nei",0,1) -> 0
A40: =+IF($C$7<>"Nei",0,1) -> 0 | B40: Eksponering
A41: 0 | B41: Risikospredning (%)
A42: 0 | B42: Markedslikviditet (%)
A43: 0 | B43: Risikospredning | C43: =C41*C40 -> 0
A44: 0 | B44: Markedslikviditet | C44: =C42*C40 -> 0
B45: Bankportefølje
B46: NII (effekt på resultatet)
B47: Ramme for tapspotensial
B48: Tapspotensial
B49: EVE (effekt på egenkapitalen)
B50: Ramme for tapspotensial
B51: Tapspotensial | C51: =C52+C55+C56 -> 0
B52: Eksponering
B53: Risikospredning (%)
B54: Markedslikviditet (%)
B55: Risikospredning | C55: =C53*C52 -> 0
B56: Markedslikviditet | C56: =C54*C52 -> 0
A57: =+IF($C$7<>"Nei",0,1) -> 0
A58: =+IF($C$7<>"Nei",0,1) -> 0 | B58: Samlet ramme for tapspotensial | C58: =C38+C50 -> 0 | E58: =+IF($C$7<>"Nei",0,1) -> 0
A59: =+IF($C$7<>"Nei",0,1) -> 0 | B59: Samlet tapspotensial | C59: =C39+C51 -> 0 | E59: =+IF($C$7<>"Nei",0,1) -> 0
B61: Definisjon av ramme - evt. henvisning til dokumentnavn fra arkfane "Vedlegg"
B63: Valutarisiko | C63: Beløp i tusen kr
A64: =+IF($C$7<>"Nei",0,1) -> 0 | B64: Handelsportefølje | E64: =+IF($C$7<>"Nei",0,1) -> 0
A65: =+IF($C$7<>"Nei",0,1) -> 0 | B65: Ramme for tapspotensial | E65: =+IF($C$7<>"Nei",0,1) -> 0
A66: =+IF($C$7<>"Nei",0,1) -> 0 | B66: Tapspotensial | C66: =C67+C70+C71 -> 0 | E66: =+IF($C$7<>"Nei",0,1) -> 0
A67: =+IF($C$7<>"Nei",0,1) -> 0 | B67: Eksponering
A68: 0 | B68: Risikospredning (%)
A69: 0 | B69: Markedslikviditet (%)
A70: 0 | B70: Risikospredning | C70: =C68*C67 -> 0
A71: 0 | B71: Markedslikviditet | C71: =C69*C67 -> 0
B72: Bankportefølje
B73: Ramme for tapspotensial
B74: Tapspotensial | C74: =C75+C78+C79 -> 0
B75: Eksponering
B76: Risikospredning (%)
B77: Markedslikviditet (%)
B78: Risikospredning | C78: =C76*C75 -> 0
B79: Markedslikviditet | C79: =C77*C75 -> 0
A80: =+IF($C$7<>"Nei",0,1) -> 0
A81: =+IF($C$7<>"Nei",0,1) -> 0 | B81: Samlet ramme for tapspotensial | C81: =C65+C73 -> 0 | E81: =+IF($C$7<>"Nei",0,1) -> 0
A82: =+IF($C$7<>"Nei",0,1) -> 0 | B82: Samlet tapspotensial | C82: =C66+C74 -> 0 | E82: =+IF($C$7<>"Nei",0,1) -> 0
B84: Definisjon av ramme - evt. henvisning til dokumentnavn fra arkfane "Vedlegg"
B86: Eiendomsrisiko | C86: Beløp i tusen kr
B87: Bankportefølje
B88: Ramme for tapspotensial
B89: Bokført verdi
B90: Markedsverdi
B91: Tapspotensial | C91: =C92+C95+C96 -> 0
B92: Eksponering
B93: Risikospredning (%)
B94: Markedslikviditet (%)
B95: Risikospredning | C95: =C93*C92 -> 0
B96: Markedslikviditet | C96: =C94*C92 -> 0
B98: Definisjon av ramme - evt. henvisning til dokumentnavn fra arkfane "Vedlegg"
B100: Kredittspreadrisiko - Bankportefølje
B101: Rating | C101: Markedsverdi (i tusen kr) | D101: Gj.sn. løpetid
B102: AAA
B103: AA
B104: A
B105: BBB
B106: BB
B107: B
B108: CCC-D
B109: OMF (AAA)
B110: OMF (AA)
B111: Andre 0-vektere
B112: Ikke ratet
B113: Sum | C113: =SUM(C102:C112) -> 0 | D113: =IF(COUNT(D102:D112)=0,0,C102/C113*D102+C103/C113*D103+C104/C113*D104+C105/C113*D105+C106/C113*D106+C107/C113*D107+C108/C113*D108+C109/C113*D109+C110/C113*D110+C112/C113*D112) -> 0
B115: 0-vektere unntatt (AAA og AA-vektede statsobligasjoner)
B116: "Egne papirer"
B117: Andre unntatte papirer
B118: Sum porteføljer unntatt | C118: =SUM(C115:C117) -> 0
B119: Total likv.portefølje | C119: =C113+C118 -> 0
C120: Beløp i tusen kr
B121: Ramme for tapspotensial
B122: Tapspotensial etter 40% nedjustering | C122: =C123*60% -> 0
B123: Tapspotensial iht. Solvens II-metodikk | C123: =C124+C127+C128 -> 0
B124: Eksponering | C124: =100%*'Beregningsgrunnlag Pilar 2'!E14 -> 0
B125: Risikospredning (%)
B126: Markedslikviditet (%)
B127: Risikospredning | C127: =C125*C124 -> 0
B128: Markedslikviditet | C128: =C126*C124 -> 0
B130: Definisjon av ramme - evt. henvisning til dokumentnavn fra arkfane "Vedlegg"
B132: Andre relevante opplysninger for Finanstilsynets vurdering av foretakets markedsrisikonivå, herunder markedsrisiko som ikke er omfattet av rapporteringen ovenfor:

Sheet Vedlegg
C2: <-- Last opp ett vedlegg om gangen.
B4: Vedlegg: | C4: Forklaring vedlegg:

Sheet Beregningsgrunnlag Pilar 2 (hidden)
A1: =+IF(Skjema!B100="","",Skjema!B100) -> Kredittspreadrisiko - Bankportefølje | B1: =+IF(Skjema!C100="","",Skjema!C100) ->  | C1: =+IF(Skjema!D100="","",Skjema!D100) -> 
A2: =+IF(Skjema!B101="","",Skjema!B101) -> Rating | B2: =+IF(Skjema!C101="","",Skjema!C101) -> Markedsverdi (i tusen kr) | C2: =+IF(Skjema!D101="","",Skjema!D101) -> Gj.sn. løpetid | D2: Påslag | E2: Risiko*
A3: =+IF(Skjema!B102="","",Skjema!B102) -> AAA | B3: =+IF(Skjema!C102="",0,Skjema!C102) -> 0 | C3: =+IF(Skjema!D102="",0,Skjema!D102) -> 0 | D3: 0.009 | E3: =B3*C3*D3 -> 0
A4: =+IF(Skjema!B103="","",Skjema!B103) -> AA | B4: =+IF(Skjema!C103="",0,Skjema!C103) -> 0 | C4: =+IF(Skjema!D103="",0,Skjema!D103) -> 0 | D4: 0.011 | E4: =B4*C4*D4 -> 0
A5: =+IF(Skjema!B104="","",Skjema!B104) -> A | B5: =+IF(Skjema!C104="",0,Skjema!C104) -> 0 | C5: =+IF(Skjema!D104="",0,Skjema!D104) -> 0 | D5: 0.014 | E5: 0
A6: =+IF(Skjema!B105="","",Skjema!B105) -> BBB | B6: =+IF(Skjema!C105="",0,Skjema!C105) -> 0 | C6: =+IF(Skjema!D105="",0,Skjema!D105) -> 0 | D6: 0.025 | E6: 0
A7: =+IF(Skjema!B106="","",Skjema!B106) -> BB | B7: =+IF(Skjema!C106="",0,Skjema!C106) -> 0 | C7: =+IF(Skjema!D106="",0,Skjema!D106) -> 0 | D7: 0.045 | E7: 0
A8: =+IF(Skjema!B107="","",Skjema!B107) -> B | B8: =+IF(Skjema!C107="",0,Skjema!C107) -> 0 | C8: =+IF(Skjema!D107="",0,Skjema!D107) -> 0 | D8: 0.075 | E8: 0
A9: =+IF(Skjema!B108="","",Skjema!B108) -> CCC-D | B9: =+IF(Skjema!C108="",0,Skjema!C108) -> 0 | C9: =+IF(Skjema!D108="",0,Skjema!D108) -> 0 | D9: 0.075 | E9: 0
A10: =+IF(Skjema!B109="","",Skjema!B109) -> OMF (AAA) | B10: =+IF(Skjema!C109="",0,Skjema!C109) -> 0 | C10: =+IF(Skjema!D109="",0,Skjema!D109) -> 0 | D10: 0.007 | E10: 0
A11: =+IF(Skjema!B110="","",Skjema!B110) -> OMF (AA) | B11: =+IF(Skjema!C110="",0,Skjema!C110) -> 0 | C11: =+IF(Skjema!D110="",0,Skjema!D110) -> 0 | D11: 0.009 | E11: 0
A12: =+IF(Skjema!B111="","",Skjema!B111) -> Andre 0-vektere | B12: =+IF(Skjema!C111="",0,Skjema!C111) -> 0 | C12: =+IF(Skjema!D111="",0,Skjema!D111) -> 0 | D12: 0.003 | E12: =B12*C12*D12 -> 0
A13: =+IF(Skjema!B112="","",Skjema!B112) -> Ikke ratet | B13: =+IF(Skjema!C112="",0,Skjema!C112) -> 0 | C13: =+IF(Skjema!D112="",0,Skjema!D112) -> 0 | D13: 0.03 | E13: 0
A14: =+IF(Skjema!B113="","",Skjema!B113) -> Sum | B14: =+IF(Skjema!C113="",0,Skjema!C113) -> 0 | C14: =+IF(Skjema!D113="",0,Skjema!D113) -> 0 | E14: =+SUM(E3:E13) -> 0
A15: *beregning iht. rundskriv 12/2016, vedlegg 3, avsnitt 4.5 'Spreadrisiko', tabell 2 'Spreadrisiko, sammenheng mellom rating og antatt spreadendring'

Sheet Python (hidden)
A1: =+IF(Skjema!B1="","",Skjema!B1) -> Markedsrisiko: rammer og tapspotensial | B1: =+IF(Skjema!C1="","",Skjema!C1) ->  | C1: =+IF(Skjema!A1="","",Skjema!A1) ->  | D1: =+IF(Skjema!D1="","",Skjema!D1) -> 
A2: =+IF(Skjema!B2="","",Skjema!B2) ->  | B2: =+IF(Skjema!C2="","",Skjema!C2) ->  | C2: =+IF(Skjema!A2="","",Skjema!A2) ->  | D2: =+IF(Skjema!D2="","",Skjema!D2) -> 
A3: =+IF(Skjema!B3="","",Skjema!B3) -> 0 | B3: =+IF(Skjema!C3="","",Skjema!C3) -> 0 | C3: =+IF(Skjema!A3="","",Skjema!A3) ->  | D3: =+IF(Skjema!D3="","",Skjema!D3) -> 
A4: =+IF(Skjema!B4="","",Skjema!B4) ->  | B4: =+IF(Skjema!C4="","",Skjema!C4) ->  | C4: =+IF(Skjema!A4="","",Skjema!A4) ->  | D4: =+IF(Skjema!D4="","",Skjema!D4) -> 
A5: =+IF(Skjema!B5="","",Skjema!B5) -> Vurdering per: | B5: =+IF(Skjema!C5="","",Skjema!C5) ->  | C5: Var_ID | D5: Var_Navn_lang | E5: Var_Navn_kort
A6: =+IF(Skjema!B6="","",Skjema!B6) ->  | B6: =+IF(Skjema!C6="","",Skjema!C6) ->  | C6: =+IF(Skjema!A6="","",Skjema!A6) -> 
A7: =+IF(Skjema!B7="","",Skjema!B7) -> Har foretaket handelsportefølje som det må stilles kapital for etter Pilar 1? | B7: =+IF(Skjema!C7="","",Skjema!C7) ->  | C7: mkr_1 | D7: =A7 -> Har foretaket handelsportefølje som det må stilles kapital for etter Pilar 1? | E7: HandelPort_JaNei
A8: =+IF(Skjema!B8="","",Skjema!B8) ->  | B8: =+IF(Skjema!C8="","",Skjema!C8) ->  | D8: =+IF(Skjema!D8="","",Skjema!D8) -> 
A9: =+IF(Skjema!B9="","",Skjema!B9) -> Er noen av rammene endret siden siste rapportering? | B9: =+IF(Skjema!C9="","",Skjema!C9) ->  | C9: mkr_2 | D9: =A9 -> Er noen av rammene endret siden siste rapportering? | E9: EndretRamme_JaNei
A10: =+IF(Skjema!B10="","",Skjema!B10) ->  | B10: =+IF(Skjema!C10="","",Skjema!C10) ->  | D10: =+IF(Skjema!D10="","",Skjema!D10) -> 
A11: =+IF(Skjema!B11="","",Skjema!B11) -> Aksjerisiko | B11: =+IF(Skjema!C11="","",Skjema!C11) -> Beløp i tusen kr | D11: =+IF(Skjema!D11="","",Skjema!D11) -> 
A12: =+IF(Skjema!B12="","",Skjema!B12) -> Handelsportefølje | B12: =+IF(Skjema!C12="","",Skjema!C12) ->  | D12: =+IF(Skjema!D12="","",Skjema!D12) -> 
A13: =+IF(Skjema!B13="","",Skjema!B13) -> Ramme for tapspotensial | B13: =+IF(Skjema!C13="","",Skjema!C13) ->  | C13: mkr_3 | D13: =+$A$11&"_"&$A$12&"_"&A13 -> Aksjerisiko_Handelsportefølje_Ramme for tapspotensial | E13: AksjeRisk_HandelPort_RammeTapspot
A14: =+IF(Skjema!B14="","",Skjema!B14) -> Tapspotensial | B14: =+IF(Skjema!C14="","",Skjema!C14) -> 0 | C14: mkr_4 | D14: =+$A$11&"_"&$A$12&"_"&A14 -> Aksjerisiko_Handelsportefølje_Tapspotensial | E14: AksjeRisk_HandelPort_Tapspot
A15: =+IF(Skjema!B15="","",Skjema!B15) -> Eksponering | B15: =+IF(Skjema!C15="","",Skjema!C15) ->  | C15: mkr_5 | D15: Aksjerisiko_Handelsportefølje_Eksponering | E15: AksjeRisk_HandelPort_Eksponering
A16: =+IF(Skjema!B16="","",Skjema!B16) -> Risikospredning (%) | B16: =+IF(Skjema!C16="","",Skjema!C16) ->  | C16: mkr_6 | D16: Aksjerisiko_Handelsportefølje_Risikospredning (%) | E16: AksjeRisk_HandelPort_RiskSpredning%
A17: =+IF(Skjema!B17="","",Skjema!B17) -> Markedslikviditet (%) | B17: =+IF(Skjema!C17="","",Skjema!C17) ->  | C17: mkr_7 | D17: Aksjerisiko_Handelsportefølje_Markedslikviditet (%) | E17: AksjeRisk_HandelPort_Markedslikviditet%
A18: =+IF(Skjema!B18="","",Skjema!B18) -> Risikospredning | B18: =+IF(Skjema!C18="","",Skjema!C18) -> 0 | C18: mkr_8 | D18: Aksjerisiko_Handelsportefølje_Risikospredning | E18: AksjeRisk_HandelPort_RiskSpredning
A19: =+IF(Skjema!B19="","",Skjema!B19) -> Markedslikviditet | B19: =+IF(Skjema!C19="","",Skjema!C19) -> 0 | C19: mkr_9 | D19: Aksjerisiko_Handelsportefølje_Markedslikviditet | E19: AksjeRisk_HandelPort_Markedslikviditet
A20: =+IF(Skjema!B20="","",Skjema!B20) -> Bankportefølje | B20: =+IF(Skjema!C20="","",Skjema!C20) ->  | D20: =+IF(Skjema!D20="","",Skjema!D20) -> 
A21: =+IF(Skjema!B21="","",Skjema!B21) -> Ramme for tapspotensial | B21: =+IF(Skjema!C21="","",Skjema!C21) ->  | C21: mkr_10 | D21: =+$A$11&"_"&$A$20&"_"&A21 -> Aksjerisiko_Bankportefølje_Ramme for tapspotensial | E21: AksjeRisk_BankPort_RammeTapspot
A22: =+IF(Skjema!B22="","",Skjema!B22) -> Tapspotensial | B22: =+IF(Skjema!C22="","",Skjema!C22) -> 0 | C22: mkr_11 | D22: =+$A$11&"_"&$A$20&"_"&A22 -> Aksjerisiko_Bankportefølje_Tapspotensial | E22: AksjeRisk_BankPort_Tapspot
A23: =+IF(Skjema!B23="","",Skjema!B23) -> Eksponering | B23: =+IF(Skjema!C23="","",Skjema!C23) ->  | C23: mkr_12 | D23: Aksjerisiko_Bankportefølje_Eksponering | E23: AksjeRisk_BankPort_Eksponering
A24: =+IF(Skjema!B24="","",Skjema!B24) -> Risikospredning (%) | B24: =+IF(Skjema!C24="","",Skjema!C24) ->  | C24: mkr_13 | D24: Aksjerisiko_Bankportefølje_Risikospredning (%) | E24: AksjeRisk_BankPort_RiskSpredning%
A25: =+IF(Skjema!B25="","",Skjema!B25) -> Markedslikviditet (%) | B25: =+IF(Skjema!C25="","",Skjema!C25) ->  | C25: mkr_14 | D25: Aksjerisiko_Bankportefølje_Markedslikviditet (%) | E25: AksjeRisk_BankPort_Markedslikviditet%
A26: =+IF(Skjema!B26="","",Skjema!B26) -> Risikospredning | B26: =+IF(Skjema!C26="","",Skjema!C26) -> 0 | C26: mkr_15 | D26: Aksjerisiko_Bankportefølje_Risikospredning | E26: AksjeRisk_BankPort_RiskSpredning
A27: =+IF(Skjema!B27="","",Skjema!B27) -> Markedslikviditet | B27: =+IF(Skjema!C27="","",Skjema!C27) -> 0 | C27: mkr_16 | D27: Aksjerisiko_Bankportefølje_Markedslikviditet | E27: AksjeRisk_BankPort_Markedslikviditet
A28: =+IF(Skjema!B28="","",Skjema!B28) ->  | B28: =+IF(Skjema!C28="","",Skjema!C28) ->  | D28: =+IF(Skjema!D28="","",Skjema!D28) -> 
A29: =+IF(Skjema!B29="","",Skjema!B29) -> Samlet ramme for tapspotensial | B29: =+IF(Skjema!C29="","",Skjema!C29) -> 0 | C29: mkr_17 | D29: =+$A$11&"_"&A29 -> Aksjerisiko_Samlet ramme for tapspotensial | E29: AksjeRisk_SamletRammeTapspot
A30: =+IF(Skjema!B30="","",Skjema!B30) -> Samlet tapspotensial | B30: =+IF(Skjema!C30="","",Skjema!C30) -> 0 | C30: mkr_18 | D30: =+$A$11&"_"&A30 -> Aksjerisiko_Samlet tapspotensial | E30: AksjeRisk_SamletTapspot
A31: =+IF(Skjema!B31="","",Skjema!B31) ->  | B31: =+IF(Skjema!C31="","",Skjema!C31) ->  | D31: =+IF(Skjema!D31="","",Skjema!D31) -> 
A32: =+IF(Skjema!B32="","",Skjema!B32) -> Definisjon av ramme - evt. henvisning til dokumentnavn fra arkfane "Vedlegg" | B32: =+IF(Skjema!C32="","",Skjema!C32) ->  | C32: mkr_19 | D32: =+$A$11&"_"&A32 -> Aksjerisiko_Definisjon av ramme - evt. henvisning til dokumentnavn fra arkfane "Vedlegg" | E32: AksjeRisk_DefRamme
A33: =+IF(Skjema!B33="","",Skjema!B33) ->  | B33: =+IF(Skjema!C33="","",Skjema!C33) ->  | D33: =+IF(Skjema!D33="","",Skjema!D33) -> 
A34: =+IF(Skjema!B34="","",Skjema!B34) -> Liste over aksjeposisjoner som er unntatt i beregningen lastes opp i arkfane "Vedlegg" | B34: =+IF(Skjema!C34="","",Skjema!C34) ->  | D34: =+IF(Skjema!D34="","",Skjema!D34) -> 
A35: =+IF(Skjema!B35="","",Skjema!B35) ->  | B35: =+IF(Skjema!C35="","",Skjema!C35) ->  | D35: =+IF(Skjema!D35="","",Skjema!D35) -> 
A36: =+IF(Skjema!B36="","",Skjema!B36) -> Renterisiko | B36: =+IF(Skjema!C36="","",Skjema!C36) -> Beløp i tusen kr | D36: =+IF(Skjema!D36="","",Skjema!D36) -> 
A37: =+IF(Skjema!B37="","",Skjema!B37) -> Handelsportefølje | B37: =+IF(Skjema!C37="","",Skjema!C37) ->  | D37: =+IF(Skjema!D37="","",Skjema!D37) -> 
A38: =+IF(Skjema!B38="","",Skjema!B38) -> Ramme for tapspotensial | B38: =+IF(Skjema!C38="","",Skjema!C38) ->  | C38: mkr_20 | D38: =+$A$36&"_"&$A$37&"_"&A38 -> Renterisiko_Handelsportefølje_Ramme for tapspotensial | E38: RenteRisk_HandelPort_RammeTapspot
A39: =+IF(Skjema!B39="","",Skjema!B39) -> Tapspotensial | B39: =+IF(Skjema!C39="","",Skjema!C39) -> 0 | C39: mkr_21 | D39: =+$A$36&"_"&$A$37&"_"&A39 -> Renterisiko_Handelsportefølje_Tapspotensial | E39: RenteRisk_HandelPort_Tapspot
A40: =+IF(Skjema!B40="","",Skjema!B40) -> Eksponering | B40: =+IF(Skjema!C40="","",Skjema!C40) ->  | C40: mkr_22 | D40: Renterisiko_Handelsportefølje_Eksponering | E40: RenteRisk_HandelPort_Eksponering
A41: =+IF(Skjema!B41="","",Skjema!B41) -> Risikospredning (%) | B41: =+IF(Skjema!C41="","",Skjema!C41) ->  | C41: mkr_23 | D41: Renterisiko_Handelsportefølje_Risikospredning (%) | E41: RenteRisk_HandelPort_RiskSpredning%
A42: =+IF(Skjema!B42="","",Skjema!B42) -> Markedslikviditet (%) | B42: =+IF(Skjema!C42="","",Skjema!C42) ->  | C42: mkr_24 | D42: Renterisiko_Handelsportefølje_Markedslikviditet (%) | E42: RenteRisk_HandelPort_Markedslikviditet%
A43: =+IF(Skjema!B43="","",Skjema!B43) -> Risikospredning | B43: =+IF(Skjema!C43="","",Skjema!C43) -> 0 | C43: mkr_25 | D43: Renterisiko_Handelsportefølje_Risikospredning | E43: RenteRisk_HandelPort_RiskSpredning
A44: =+IF(Skjema!B44="","",Skjema!B44) -> Markedslikviditet | B44: =+IF(Skjema!C44="","",Skjema!C44) -> 0 | C44: mkr_26 | D44: Renterisiko_Handelsportefølje_Markedslikviditet | E44: RenteRisk_HandelPort_Markedslikviditet
A45: =+IF(Skjema!B45="","",Skjema!B45) -> Bankportefølje | B45: =+IF(Skjema!C45="","",Skjema!C45) ->  | D45: =+IF(Skjema!D45="","",Skjema!D45) -> 
A46: =+IF(Skjema!B46="","",Skjema!B46) -> NII (effekt på resultatet) | B46: =+IF(Skjema!C46="","",Skjema!C46) -> 
A47: =+IF(Skjema!B47="","",Skjema!B47) -> Ramme for tapspotensial | B47: =+IF(Skjema!C47="","",Skjema!C47) ->  | C47: mkr_27 | D47: =+$A$36&"_"&$A$45&"_"&$A$46&"_"&A47 -> Renterisiko_Bankportefølje_NII (effekt på resultatet)_Ramme for tapspotensial | E47: RenteRisk_BankPort_NII_RammeTapspot
A48: =+IF(Skjema!B48="","",Skjema!B48) -> Tapspotensial | B48: =+IF(Skjema!C48="","",Skjema!C48) ->  | C48: mkr_28 | D48: =+$A$36&"_"&$A$45&"_"&$A$46&"_"&A48 -> Renterisiko_Bankportefølje_NII (effekt på resultatet)_Tapspotensial | E48: RenteRisk_BankPort_NII_Tapspot
A49: =+IF(Skjema!B49="","",Skjema!B49) -> EVE (effekt på egenkapitalen) | B49: =+IF(Skjema!C49="","",Skjema!C49) -> 
A50: =+IF(Skjema!B50="","",Skjema!B50) -> Ramme for tapspotensial | B50: =+IF(Skjema!C50="","",Skjema!C50) ->  | C50: mkr_29 | D50: =+$A$36&"_"&$A$45&"_"&$A$49&"_"&A50 -> Renterisiko_Bankportefølje_EVE (effekt på egenkapitalen)_Ramme for tapspotensial | E50: RenteRisk_BankPort_EVE_RammeTapspot
A51: =+IF(Skjema!B51="","",Skjema!B51) -> Tapspotensial | B51: =+IF(Skjema!C51="","",Skjema!C51) -> 0 | C51: mkr_30 | D51: =+$A$36&"_"&$A$45&"_"&$A$49&"_"&A51 -> Renterisiko_Bankportefølje_EVE (effekt på egenkapitalen)_Tapspotensial | E51: RenteRisk_BankPort_EVE_Tapspot
A52: =+IF(Skjema!B52="","",Skjema!B52) -> Eksponering | B52: =+IF(Skjema!C52="","",Skjema!C52) ->  | C52: mkr_31 | D52: Renterisiko_Bankportefølje_EVE (effekt på egenkapitalen)_Eksponering | E52: RenteRisk_BankPort_EVE_Eksponering
A53: =+IF(Skjema!B53="","",Skjema!B53) -> Risikospredning (%) | B53: =+IF(Skjema!C53="","",Skjema!C53) ->  | C53: mkr_32 | D53: Renterisiko_Bankportefølje_EVE (effekt på egenkapitalen)_Risikospredning (%) | E53: RenteRisk_BankPort_EVE_RiskSpredning%
A54: =+IF(Skjema!B54="","",Skjema!B54) -> Markedslikviditet (%) | B54: =+IF(Skjema!C54="","",Skjema!C54) ->  | C54: mkr_33 | D54: Renterisiko_Bankportefølje_EVE (effekt på egenkapitalen)_Markedslikviditet (%) | E54: RenteRisk_BankPort_EVE_Markedslikviditet%
A55: =+IF(Skjema!B55="","",Skjema!B55) -> Risikospredning | B55: =+IF(Skjema!C55="","",Skjema!C55) -> 0 | C55: mkr_34 | D55: Renterisiko_Bankportefølje_EVE (effekt på egenkapitalen)_Risikospredning | E55: RenteRisk_BankPort_EVE_RiskSpredning
A56: =+IF(Skjema!B56="","",Skjema!B56) -> Markedslikviditet | B56: =+IF(Skjema!C56="","",Skjema!C56) -> 0 | C56: mkr_35 | D56: Renterisiko_Bankportefølje_EVE (effekt på egenkapitalen)_Markedslikviditet | E56: RenteRisk_BankPort_EVE_Markedslikviditet
A57: =+IF(Skjema!B57="","",Skjema!B57) ->  | B57: =+IF(Skjema!C57="","",Skjema!C57) -> 
A58: =+IF(Skjema!B58="","",Skjema!B58) -> Samlet ramme for tapspotensial | B58: =+IF(Skjema!C58="","",Skjema!C58) -> 0 | C58: mkr_36 | D58: =+$A$36&"_"&A58 -> Renterisiko_Samlet ramme for tapspotensial | E58: RenteRisk_SamletRammeTapspot
A59: =+IF(Skjema!B59="","",Skjema!B59) -> Samlet tapspotensial | B59: =+IF(Skjema!C59="","",Skjema!C59) -> 0 | C59: mkr_37 | D59: =+$A$36&"_"&A59 -> Renterisiko_Samlet tapspotensial | E59: RenteRisk_SamletTapspot
A60: =+IF(Skjema!B60="","",Skjema!B60) ->  | B60: =+IF(Skjema!C60="","",Skjema!C60) -> 
A61: =+IF(Skjema!B61="","",Skjema!B61) -> Definisjon av ramme - evt. henvisning til dokumentnavn fra arkfane "Vedlegg" | B61: =+IF(Skjema!C61="","",Skjema!C61) ->  | C61: mkr_38 | D61: =+$A$36&"_"&A61 -> Renterisiko_Definisjon av ramme - evt. henvisning til dokumentnavn fra arkfane "Vedlegg" | E61: RenteRisk_DefRamme
A62: =+IF(Skjema!B62="","",Skjema!B62) ->  | B62: =+IF(Skjema!C62="","",Skjema!C62) ->  | D62: =+IF(Skjema!D62="","",Skjema!D62) -> 
A63: =+IF(Skjema!B63="","",Skjema!B63) -> Valutarisiko | B63: =+IF(Skjema!C63="","",Skjema!C63) -> Beløp i tusen kr | D63: =+IF(Skjema!D63="","",Skjema!D63) -> 
A64: =+IF(Skjema!B64="","",Skjema!B64) -> Handelsportefølje | B64: =+IF(Skjema!C64="","",Skjema!C64) ->  | D64: =+IF(Skjema!D64="","",Skjema!D64) -> 
A65: =+IF(Skjema!B65="","",Skjema!B65) -> Ramme for tapspotensial | B65: =+IF(Skjema!C65="","",Skjema!C65) ->  | C65: mkr_39 | D65: =+$A$63&"_"&$A$64&"_"&A65 -> Valutarisiko_Handelsportefølje_Ramme for tapspotensial | E65: ValRisk_HandelPort_RammeTapspot
A66: =+IF(Skjema!B66="","",Skjema!B66) -> Tapspotensial | B66: =+IF(Skjema!C66="","",Skjema!C66) -> 0 | C66: mkr_40 | D66: =+$A$63&"_"&$A$64&"_"&A66 -> Valutarisiko_Handelsportefølje_Tapspotensial | E66: ValRisk_HandelPort_Tapspot
A67: =+IF(Skjema!B67="","",Skjema!B67) -> Eksponering | B67: =+IF(Skjema!C67="","",Skjema!C67) ->  | C67: mkr_41 | D67: Valutarisiko_Handelsportefølje_Eksponering | E67: ValRisk_HandelPort_Eksponering
A68: =+IF(Skjema!B68="","",Skjema!B68) -> Risikospredning (%) | B68: =+IF(Skjema!C68="","",Skjema!C68) ->  | C68: mkr_42 | D68: Valutarisiko_Handelsportefølje_Risikospredning (%) | E68: ValRisk_HandelPort_RiskSpredning%
A69: =+IF(Skjema!B69="","",Skjema!B69) -> Markedslikviditet (%) | B69: =+IF(Skjema!C69="","",Skjema!C69) ->  | C69: mkr_43 | D69: Valutarisiko_Handelsportefølje_Markedslikviditet (%) | E69: ValRisk_HandelPort_Markedslikviditet%
A70: =+IF(Skjema!B70="","",Skjema!B70) -> Risikospredning | B70: =+IF(Skjema!C70="","",Skjema!C70) -> 0 | C70: mkr_44 | D70: Valutarisiko_Handelsportefølje_Risikospredning | E70: ValRisk_HandelPort_RiskSpredning
A71: =+IF(Skjema!B71="","",Skjema!B71) -> Markedslikviditet | B71: =+IF(Skjema!C71="","",Skjema!C71) -> 0 | C71: mkr_45 | D71: Valutarisiko_Handelsportefølje_Markedslikviditet | E71: ValRisk_HandelPort_Markedslikviditet
A72: =+IF(Skjema!B72="","",Skjema!B72) -> Bankportefølje | B72: =+IF(Skjema!C72="","",Skjema!C72) ->  | D72: =+IF(Skjema!D72="","",Skjema!D72) -> 
A73: =+IF(Skjema!B73="","",Skjema!B73) -> Ramme for tapspotensial | B73: =+IF(Skjema!C73="","",Skjema!C73) ->  | C73: mkr_46 | D73: =+$A$63&"_"&$A$72&"_"&A73 -> Valutarisiko_Bankportefølje_Ramme for tapspotensial | E73: ValRisk_BankPort_RammeTapspot
A74: =+IF(Skjema!B74="","",Skjema!B74) -> Tapspotensial | B74: =+IF(Skjema!C74="","",Skjema!C74) -> 0 | C74: mkr_47 | D74: =+$A$63&"_"&$A$72&"_"&A74 -> Valutarisiko_Bankportefølje_Tapspotensial | E74: ValRisk_BankPort_Tapspot
A75: =+IF(Skjema!B75="","",Skjema!B75) -> Eksponering | B75: =+IF(Skjema!C75="","",Skjema!C75) ->  | C75: mkr_48 | D75: Valutarisiko_Bankportefølje_Eksponering | E75: ValRisk_BankPort_Eksponering
A76: =+IF(Skjema!B76="","",Skjema!B76) -> Risikospredning (%) | B76: =+IF(Skjema!C76="","",Skjema!C76) ->  | C76: mkr_49 | D76: Valutarisiko_Bankportefølje_Risikospredning (%) | E76: ValRisk_BankPort_RiskSpredning%
A77: =+IF(Skjema!B77="","",Skjema!B77) -> Markedslikviditet (%) | B77: =+IF(Skjema!C77="","",Skjema!C77) ->  | C77: mkr_50 | D77: Valutarisiko_Bankportefølje_Markedslikviditet (%) | E77: ValRisk_BankPort_Markedslikviditet%
A78: =+IF(Skjema!B78="","",Skjema!B78) -> Risikospredning | B78: =+IF(Skjema!C78="","",Skjema!C78) -> 0 | C78: mkr_51 | D78: Valutarisiko_Bankportefølje_Risikospredning | E78: ValRisk_BankPort_RiskSpredning
A79: =+IF(Skjema!B79="","",Skjema!B79) -> Markedslikviditet | B79: =+IF(Skjema!C79="","",Skjema!C79) -> 0 | C79: mkr_52 | D79: Valutarisiko_Bankportefølje_Markedslikviditet | E79: ValRisk_BankPort_Markedslikviditet
A80: =+IF(Skjema!B80="","",Skjema!B80) ->  | B80: =+IF(Skjema!C80="","",Skjema!C80) ->  | D80: =+IF(Skjema!D80="","",Skjema!D80) -> 
A81: =+IF(Skjema!B81="","",Skjema!B81) -> Samlet ramme for tapspotensial | B81: =+IF(Skjema!C81="","",Skjema!C81) -> 0 | C81: mkr_53 | D81: =+$A$63&"_"&A81 -> Valutarisiko_Samlet ramme for tapspotensial | E81: ValRisk_SamletRammeTapspot
A82: =+IF(Skjema!B82="","",Skjema!B82) -> Samlet tapspotensial | B82: =+IF(Skjema!C82="","",Skjema!C82) -> 0 | C82: mkr_54 | D82: =+$A$63&"_"&A82 -> Valutarisiko_Samlet tapspotensial | E82: ValRisk_SamletTapspot
A83: =+IF(Skjema!B83="","",Skjema!B83) ->  | B83: =+IF(Skjema!C83="","",Skjema!C83) ->  | D83: =+IF(Skjema!D83="","",Skjema!D83) -> 
A84: =+IF(Skjema!B84="","",Skjema!B84) -> Definisjon av ramme - evt. henvisning til dokumentnavn fra arkfane "Vedlegg" | B84: =+IF(Skjema!C84="","",Skjema!C84) ->  | C84: mkr_55 | D84: =+$A$63&"_"&A84 -> Valutarisiko_Definisjon av ramme - evt. henvisning til dokumentnavn fra arkfane "Vedlegg" | E84: ValRisk_DefRamme
A85: =+IF(Skjema!B85="","",Skjema!B85) ->  | B85: =+IF(Skjema!C85="","",Skjema!C85) ->  | D85: =+IF(Skjema!D85="","",Skjema!D85) -> 
A86: =+IF(Skjema!B86="","",Skjema!B86) -> Eiendomsrisiko | B86: =+IF(Skjema!C86="","",Skjema!C86) -> Beløp i tusen kr | D86: =+IF(Skjema!D86="","",Skjema!D86) -> 
A87: =+IF(Skjema!B87="","",Skjema!B87) -> Bankportefølje | B87: =+IF(Skjema!C87="","",Skjema!C87) ->  | D87: =+IF(Skjema!D87="","",Skjema!D87) -> 
A88: =+IF(Skjema!B88="","",Skjema!B88) -> Ramme for tapspotensial | B88: =+IF(Skjema!C88="","",Skjema!C88) ->  | C88: mkr_56 | D88: =+$A$86&"_"&$A$87&"_"&A88 -> Eiendomsrisiko_Bankportefølje_Ramme for tapspotensial | E88: EieRisk_BankPort_RammeTapspot
A89: =+IF(Skjema!B89="","",Skjema!B89) -> Bokført verdi | B89: =+IF(Skjema!C89="","",Skjema!C89) ->  | C89: mkr_57 | D89: =+$A$86&"_"&$A$87&"_"&A89 -> Eiendomsrisiko_Bankportefølje_Bokført verdi | E89: EieRisk_BankPort_BokfVerdi
A90: =+IF(Skjema!B90="","",Skjema!B90) -> Markedsverdi | B90: =+IF(Skjema!C90="","",Skjema!C90) ->  | C90: mkr_58 | D90: Eiendomsrisiko_Bankportefølje_Markedsverdi | E90: EieRisk_BankPort_Markedsverdi
A91: =+IF(Skjema!B91="","",Skjema!B91) -> Tapspotensial | B91: =+IF(Skjema!C91="","",Skjema!C91) -> 0 | C91: mkr_59 | D91: Eiendomsrisiko_Bankportefølje_Tapspotensial | E91: EieRisk_BankPort_Tapspot
A92: =+IF(Skjema!B92="","",Skjema!B92) -> Eksponering | B92: =+IF(Skjema!C92="","",Skjema!C92) ->  | C92: mkr_60 | D92: Eiendomsrisiko_Bankportefølje_Eksponering | E92: EieRisk_BankPort_Eksponering
A93: =+IF(Skjema!B93="","",Skjema!B93) -> Risikospredning (%) | B93: =+IF(Skjema!C93="","",Skjema!C93) ->  | C93: mkr_61 | D93: Eiendomsrisiko_Bankportefølje_Risikospredning (%) | E93: EieRisk_BankPort_RiskSpredning%
A94: =+IF(Skjema!B94="","",Skjema!B94) -> Markedslikviditet (%) | B94: =+IF(Skjema!C94="","",Skjema!C94) ->  | C94: mkr_62 | D94: Eiendomsrisiko_Bankportefølje_Markedslikviditet (%) | E94: EieRisk_BankPort_Markedslikviditet%
A95: =+IF(Skjema!B95="","",Skjema!B95) -> Risikospredning | B95: =+IF(Skjema!C95="","",Skjema!C95) -> 0 | C95: mkr_63 | D95: Eiendomsrisiko_Bankportefølje_Risikospredning | E95: EieRisk_BankPort_RiskSpredning
A96: =+IF(Skjema!B96="","",Skjema!B96) -> Markedslikviditet | B96: =+IF(Skjema!C96="","",Skjema!C96) -> 0 | C96: mkr_64 | D96: Eiendomsrisiko_Bankportefølje_Markedslikviditet | E96: EieRisk_BankPort_Markedslikviditet
A97: =+IF(Skjema!B97="","",Skjema!B97) ->  | B97: =+IF(Skjema!C97="","",Skjema!C97) ->  | D97: =+IF(Skjema!D97="","",Skjema!D97) -> 
A98: =+IF(Skjema!B98="","",Skjema!B98) -> Definisjon av ramme - evt. henvisning til dokumentnavn fra arkfane "Vedlegg" | B98: =+IF(Skjema!C98="","",Skjema!C98) ->  | C98: mkr_65 | D98: Eiendomsrisiko_Bankportefølje_Definisjon av ramme - evt. henvisning til dokumentnavn fra arkfane "Vedlegg" | E98: EieRisk_BankPort_DefRamme
A99: =+IF(Skjema!B99="","",Skjema!B99) ->  | B99: =+IF(Skjema!C99="","",Skjema!C99) ->  | D99: =+IF(Skjema!D99="","",Skjema!D99) -> 
A100: =+IF(Skjema!B100="","",Skjema!B100) -> Kredittspreadrisiko - Bankportefølje | B100: =+IF(Skjema!C100="","",Skjema!C100) ->  | D100: =+IF(Skjema!D100="","",Skjema!D100) -> 
A101: =+IF(Skjema!B101="","",Skjema!B101) -> Rating | B101: =+IF(Skjema!C101="","",Skjema!C101) -> Markedsverdi (i tusen kr)
A102: =+IF(Skjema!B102="","",Skjema!B102) -> AAA | B102: =+IF(Skjema!C102="","",Skjema!C102) ->  | C102: mkr_66 | D102: =+$A$100&"_"&$B$101&"_"&A102 -> Kredittspreadrisiko - Bankportefølje_Markedsverdi (i tusen kr)_AAA | E102: KredRisk_BankPort_MarkedsVerdi_AAA
A103: =+IF(Skjema!B103="","",Skjema!B103) -> AA | B103: =+IF(Skjema!C103="","",Skjema!C103) ->  | C103: mkr_67 | D103: =+$A$100&"_"&$B$101&"_"&A103 -> Kredittspreadrisiko - Bankportefølje_Markedsverdi (i tusen kr)_AA | E103: KredRisk_BankPort_MarkedsVerdi_AA
A104: =+IF(Skjema!B104="","",Skjema!B104) -> A | B104: =+IF(Skjema!C104="","",Skjema!C104) ->  | C104: mkr_68 | D104: Kredittspreadrisiko - Bankportefølje_Markedsverdi (i tusen kr)_A | E104: KredRisk_BankPort_MarkedsVerdi_A
A105: =+IF(Skjema!B105="","",Skjema!B105) -> BBB | B105: =+IF(Skjema!C105="","",Skjema!C105) ->  | C105: mkr_69 | D105: Kredittspreadrisiko - Bankportefølje_Markedsverdi (i tusen kr)_BBB | E105: KredRisk_BankPort_MarkedsVerdi_BBB
A106: =+IF(Skjema!B106="","",Skjema!B106) -> BB | B106: =+IF(Skjema!C106="","",Skjema!C106) ->  | C106: mkr_70 | D106: Kredittspreadrisiko - Bankportefølje_Markedsverdi (i tusen kr)_BB | E106: KredRisk_BankPort_MarkedsVerdi_BB
A107: =+IF(Skjema!B107="","",Skjema!B107) -> B | B107: =+IF(Skjema!C107="","",Skjema!C107) ->  | C107: mkr_71 | D107: Kredittspreadrisiko - Bankportefølje_Markedsverdi (i tusen kr)_B | E107: KredRisk_BankPort_MarkedsVerdi_B
A108: =+IF(Skjema!B108="","",Skjema!B108) -> CCC-D | B108: =+IF(Skjema!C108="","",Skjema!C108) ->  | C108: mkr_72 | D108: Kredittspreadrisiko - Bankportefølje_Markedsverdi (i tusen kr)_CCC-D | E108: KredRisk_BankPort_MarkedsVerdi_CCC-D
A109: =+IF(Skjema!B109="","",Skjema!B109) -> OMF (AAA) | B109: =+IF(Skjema!C109="","",Skjema!C109) ->  | C109: mkr_73 | D109: Kredittspreadrisiko - Bankportefølje_Markedsverdi (i tusen kr)_OMF (AAA) | E109: KredRisk_BankPort_MarkedsVerdi_OMF(AAA)
A110: =+IF(Skjema!B110="","",Skjema!B110) -> OMF (AA) | B110: =+IF(Skjema!C110="","",Skjema!C110) ->  | C110: mkr_74 | D110: Kredittspreadrisiko - Bankportefølje_Markedsverdi (i tusen kr)_OMF (AA) | E110: KredRisk_BankPort_MarkedsVerdi_OMF(AA)
A111: =+IF(Skjema!B111="","",Skjema!B111) -> Andre 0-vektere | B111: =+IF(Skjema!C111="","",Skjema!C111) ->  | C111: mkr_106 | D111: =+$A$100&"_"&$B$101&"_"&A111 -> Kredittspreadrisiko - Bankportefølje_Markedsverdi (i tusen kr)_Andre 0-vektere | E111: KredRisk_BankPort_MarkedsVerdi_Andre0-vektere
A112: =+IF(Skjema!B112="","",Skjema!B112) -> Ikke ratet | B112: =+IF(Skjema!C112="","",Skjema!C112) ->  | C112: mkr_75 | D112: Kredittspreadrisiko - Bankportefølje_Markedsverdi (i tusen kr)_Ikke ratet | E112: KredRisk_BankPort_MarkedsVerdi_IkkeRatet
A113: =+IF(Skjema!B113="","",Skjema!B113) -> Sum | B113: =+IF(Skjema!C113="","",Skjema!C113) -> 0 | C113: mkr_76 | D113: Kredittspreadrisiko - Bankportefølje_Markedsverdi (i tusen kr)_Sum | E113: KredRisk_BankPort_MarkedsVerdi_Sum
A114: =+IF(Skjema!B114="","",Skjema!B114) ->  | B114: =+IF(Skjema!C114="","",Skjema!C114) -> 
A115: =+IF(Skjema!B115="","",Skjema!B115) -> 0-vektere unntatt (AAA og AA-vektede statsobligasjoner) | B115: =+IF(Skjema!C115="","",Skjema!C115) ->  | C115: mkr_77 | D115: =+$A$100&"_"&$B$101&"_"&A115 -> Kredittspreadrisiko - Bankportefølje_Markedsverdi (i tusen kr)_0-vektere unntatt (AAA og AA-vektede statsobligasjoner) | E115: KredRisk_BankPort_MarkedsVerdi_0-vektereUnntatt
A116: =+IF(Skjema!B116="","",Skjema!B116) -> "Egne papirer" | B116: =+IF(Skjema!C116="","",Skjema!C116) ->  | C116: mkr_79 | D116: Kredittspreadrisiko - Bankportefølje_Markedsverdi (i tusen kr)_"Egne papirer" | E116: KredRisk_BankPort_MarkedsVerdi_EgnePapirer
A117: =+IF(Skjema!B117="","",Skjema!B117) -> Andre unntatte papirer | B117: =+IF(Skjema!C117="","",Skjema!C117) ->  | C117: mkr_80 | D117: Kredittspreadrisiko - Bankportefølje_Markedsverdi (i tusen kr)_Andre unntatte papirer | E117: KredRisk_BankPort_MarkedsVerdi_AndreUnntattPapir
A118: =+A101 -> Rating | B118: =+IF(Skjema!D101="","",Skjema!D101) -> Gj.sn. løpetid
A119: AAA | B119: =+IF(Skjema!D102="","",Skjema!D102) ->  | C119: mkr_81 | D119: =+$A$100&"_"&$B$118&"_"&A119 -> Kredittspreadrisiko - Bankportefølje_Gj.sn. løpetid_AAA | E119: KredRisk_BankPort_Gj_lopetid_AAA
A120: AA | B120: =+IF(Skjema!D103="","",Skjema!D103) ->  | C120: mkr_82 | D120: Kredittspreadrisiko - Bankportefølje_Gj.sn. løpetid_AA | E120: KredRisk_BankPort_Gj_lopetid_AA
A121: A | B121: =+IF(Skjema!D104="","",Skjema!D104) ->  | C121: mkr_83 | D121: Kredittspreadrisiko - Bankportefølje_Gj.sn. løpetid_A | E121: KredRisk_BankPort_Gj_lopetid_A
A122: BBB | B122: =+IF(Skjema!D105="","",Skjema!D105) ->  | C122: mkr_84 | D122: Kredittspreadrisiko - Bankportefølje_Gj.sn. løpetid_BBB | E122: KredRisk_BankPort_Gj_lopetid_BBB
A123: BB | B123: =+IF(Skjema!D106="","",Skjema!D106) ->  | C123: mkr_85 | D123: Kredittspreadrisiko - Bankportefølje_Gj.sn. løpetid_BB | E123: KredRisk_BankPort_Gj_lopetid_BB
A124: B | B124: =+IF(Skjema!D107="","",Skjema!D107) ->  | C124: mkr_86 | D124: Kredittspreadrisiko - Bankportefølje_Gj.sn. løpetid_B | E124: KredRisk_BankPort_Gj_lopetid_B
A125: CCC-D | B125: =+IF(Skjema!D108="","",Skjema!D108) ->  | C125: mkr_87 | D125: Kredittspreadrisiko - Bankportefølje_Gj.sn. løpetid_CCC-D | E125: KredRisk_BankPort_Gj_lopetid_CCC-D
A126: OMF (AAA) | B126: =+IF(Skjema!D109="","",Skjema!D109) ->  | C126: mkr_88 | D126: Kredittspreadrisiko - Bankportefølje_Gj.sn. løpetid_OMF (AAA) | E126: KredRisk_BankPort_Gj_lopetid_OMF(AAA)
A127: OMF (AA) | B127: =+IF(Skjema!D110="","",Skjema!D110) ->  | C127: mkr_89 | D127: Kredittspreadrisiko - Bankportefølje_Gj.sn. løpetid_OMF (AA) | E127: KredRisk_BankPort_Gj_lopetid_OMF(AA)
A128: Andre 0-vektere | B128: =+IF(Skjema!D111="","",Skjema!D111) ->  | C128: mkr_107 | D128: Kredittspreadrisiko - Bankportefølje_Gj.sn. løpetid_Andre 0-vektere | E128: KredRisk_BankPort_Gj_lopetid_Andre0-vektere
A129: Ikke ratet | B129: =+IF(Skjema!D112="","",Skjema!D112) ->  | C129: mkr_90 | D129: Kredittspreadrisiko - Bankportefølje_Gj.sn. løpetid_Ikke ratet | E129: KredRisk_BankPort_Gj_lopetid_IkkeRatet
A130: Sum | B130: =+IF(Skjema!D113="","",Skjema!D113) -> 0 | C130: mkr_91 | D130: Kredittspreadrisiko - Bankportefølje_Gj.sn. løpetid_Sum | E130: KredRisk_BankPort_Gj_lopetid_Sum
B131: =+IF(Skjema!D114="","",Skjema!D114) -> 
A132: 0-vektere unntatt (AAA og AA-vektede statsobligasjoner) | B132: =+IF(Skjema!D115="","",Skjema!D115) ->  | C132: mkr_92 | D132: =+$A$100&"_"&$B$118&"_"&A132 -> Kredittspreadrisiko - Bankportefølje_Gj.sn. løpetid_0-vektere unntatt (AAA og AA-vektede statsobligasjoner) | E132: KredRisk_BankPort_Gj_lopetid_0-vektereUnntatt
A133: =+IF(Skjema!B118="","",Skjema!B118) -> Sum porteføljer unntatt | B133: =+IF(Skjema!C118="","",Skjema!C118) -> 0 | C133: mkr_94 | D133: =+$A$100&"_"&$B$101&"_"&A133 -> Kredittspreadrisiko - Bankportefølje_Markedsverdi (i tusen kr)_Sum porteføljer unntatt | E133: KredRisk_BankPort_MarkedsVerdi_SumPortUnntatt
A134: =+IF(Skjema!B119="","",Skjema!B119) -> Total likv.portefølje | B134: =+IF(Skjema!C119="","",Skjema!C119) -> 0 | C134: mkr_95 | D134: =+$A$100&"_"&$B$101&"_"&A134 -> Kredittspreadrisiko - Bankportefølje_Markedsverdi (i tusen kr)_Total likv.portefølje | E134: KredRisk_BankPort_MarkedsVerdi_TotLikvPort
A135: =+IF(Skjema!B120="","",Skjema!B120) ->  | B135: =+IF(Skjema!C120="","",Skjema!C120) -> Beløp i tusen kr
A136: =+IF(Skjema!B121="","",Skjema!B121) -> Ramme for tapspotensial | B136: =+IF(Skjema!C121="","",Skjema!C121) ->  | C136: mkr_96 | D136: Kredittspreadrisiko_Bankportefølje_Ramme for tapspotensial | E136: KredRisk_BankPort_RammeTapspot
A137: =+IF(Skjema!B122="","",Skjema!B122) -> Tapspotensial etter 40% nedjustering | B137: =+IF(Skjema!C122="","",Skjema!C122) -> 0 | C137: mkr_105 | D137: Kredittspreadrisiko_Bankportefølje_Tapspotensial_nedjustert | E137: KredRisk_BankPort_Tapspot_nedjust
A138: =+IF(Skjema!B123="","",Skjema!B123) -> Tapspotensial iht. Solvens II-metodikk | B138: =+IF(Skjema!C123="","",Skjema!C123) -> 0 | C138: mkr_97 | D138: Kredittspreadrisiko_Bankportefølje_Tapspotensial | E138: KredRisk_BankPort_Tapspot
A139: =+IF(Skjema!B124="","",Skjema!B124) -> Eksponering | B139: =+IF(Skjema!C124="","",Skjema!C124) -> 0 | C139: mkr_98 | D139: Kredittspreadrisiko_Bankportefølje_Eksponering | E139: KredRisk_BankPort_Eksponering
A140: =+IF(Skjema!B125="","",Skjema!B125) -> Risikospredning (%) | B140: =+IF(Skjema!C125="","",Skjema!C125) ->  | C140: mkr_99 | D140: Kredittspreadrisiko_Bankportefølje_Risikospredning (%) | E140: KredRisk_BankPort_RiskSpredning%
A141: =+IF(Skjema!B126="","",Skjema!B126) -> Markedslikviditet (%) | B141: =+IF(Skjema!C126="","",Skjema!C126) ->  | C141: mkr_100 | D141: Kredittspreadrisiko_Bankportefølje_Markedslikviditet (%) | E141: KredRisk_BankPort_Markedslikviditet%
A142: =+IF(Skjema!B127="","",Skjema!B127) -> Risikospredning | B142: =+IF(Skjema!C127="","",Skjema!C127) -> 0 | C142: mkr_101 | D142: Kredittspreadrisiko_Bankportefølje_Risikospredning | E142: KredRisk_BankPort_RiskSpredning
A143: =+IF(Skjema!B128="","",Skjema!B128) -> Markedslikviditet | B143: =+IF(Skjema!C128="","",Skjema!C128) -> 0 | C143: mkr_102 | D143: Kredittspreadrisiko_Bankportefølje_Markedslikviditet | E143: KredRisk_BankPort_Markedslikviditet
A144: =+IF(Skjema!B129="","",Skjema!B129) ->  | B144: =+IF(Skjema!C129="","",Skjema!C129) -> 
A145: =+IF(Skjema!B130="","",Skjema!B130) -> Definisjon av ramme - evt. henvisning til dokumentnavn fra arkfane "Vedlegg" | B145: =+IF(Skjema!C130="","",Skjema!C130) ->  | C145: mkr_103 | D145: Kredittspreadrisiko_Bankportefølje_Definisjon av ramme - evt. henvisning til dokumentnavn fra arkfane "Vedlegg" | E145: KredRisk_BankPort_DefRamme
A146: =+IF(Skjema!B131="","",Skjema!B131) ->  | B146: =+IF(Skjema!C131="","",Skjema!C131) -> 
A147: =+IF(Skjema!B132="","",Skjema!B132) -> Andre relevante opplysninger for Finanstilsynets vurdering av foretakets markedsrisikonivå, herunder markedsrisiko som ikke er omfattet av rapporteringen ovenfor: | B147: =+IF(Skjema!C132="","",Skjema!C132) ->  | C147: mkr_104 | D147: =+A147 -> Andre relevante opplysninger for Finanstilsynets vurdering av foretakets markedsrisikonivå, herunder markedsrisiko som ikke er omfattet av rapporteringen ovenfor: | E147: AndreRelOpplysn
